fUSD/lending_fUSD_20240614
["ID","MTS","AMOUNT","RATE_DAILY","PERIOD"]
[329411660,1718326287396,-500.0,0.00024383,2]
[329411661,1718326287411,-746.58,0.00024383,2]
[329411662,1718326287442,-500.0,0.00024383,2]
[329411663,1718326287557,-500.0,0.00024383,2]
[329411664,1718326287569,-500.0,0.00024383,2]
[329411665,1718326287585,-500.0,0.00024383,2]
[329411666,1718326287604,-372.07,0.00024383,2]
[329411667,1718326287637,-500.0,0.00024383,2]
[329411668,1718326287665,-2738.14,0.00024383,2]
[329411669,1718326287764,-500.0,0.00024383,2]
[329411670,1718326287775,-500.0,0.00024383,2]
[329411671,1718326287792,-500.0,0.00024383,2]
[329411672,1718326287804,-500.0,0.00024383,2]
[329411673,1718326287823,-4588.61,0.00024383,2]
[329411674,1718326287844,-500.0,0.00024383,2]
[329411675,1718326287859,-500.0,0.00024383,2]
[329411676,1718326287881,-500.0,0.00024383,2]
[329411677,1718326287924,-500.0,0.00024383,2]
[329411678,1718326287946,-500.0,0.00024383,2]
[329411679,1718326287965,-500.0,0.00024383,2]
[329411680,1718326287977,-500.0,0.00024383,2]
[329411681,1718326288020,-500.0,0.00024383,2]
[329411682,1718326288047,-467.1627788,0.00024383,2]
[329411683,1718326288059,-500.0,0.00024383,2]
[329411684,1718326288081,-745.58,0.00024383,2]
[329411685,1718326288102,-151.0,0.00024383,7]
[329411686,1718326288153,-151.0,0.00024383,7]
[329411687,1718326288171,-151.0,0.00024383,7]
[329411688,1718326288212,-500.0,0.00024383,2]
[329411689,1718326288254,-1721.54,0.00024383,2]
[329411690,1718326288267,-151.0,0.00024383,7]
[329411691,1718326288278,-151.0,0.00024383,7]
[329411692,1718326288290,-200.347242,0.00024383,7]
[329411693,1718326288303,-151.0,0.00024383,7]
[329411694,1718326288314,-3059.36,0.00024383,2]
[329411695,1718326288335,-151.0,0.00024383,7]
[329411696,1718326288389,-151.0,0.00024383,7]
[329411697,1718326288429,-500.0,0.00024383,2]
[329411698,1718326288461,-500.0,0.00024383,2]
[329411699,1718326288494,-151.0,0.00024383,7]
[329411700,1718326288528,-151.0,0.00024383,7]
[329411701,1718326288544,-151.0,0.00024383,7]
[329411702,1718326288563,-500.0,0.00024383,2]
[329411703,1718326288616,-500.0,0.00024383,2]
[329411704,1718326288626,-642.36325744,0.00024383,2]
[329411705,1718326288659,-500.0,0.00024383,2]
[329411706,1718326288696,-500.0,0.00024383,2]
[329411707,1718326288715,-500.0,0.00024383,2]
[329411708,1718326288726,-500.0,0.00024383,2]
[329411709,1718326288740,-300.04,0.00024383,2]
[329411710,1718326288767,-1034.72,0.00024383,2]
[329411711,1718326288779,-151.0,0.00024383,7]
[329411712,1718326288801,-622.2217774,0.00024383,2]
[329411713,1718326288814,-151.0,0.00024383,7]
[329411714,1718326288828,-500.0,0.00024383,2]
[329411715,1718326288912,-3109.59,0.00024383,2]
[329411716,1718326288923,-151.0,0.00024383,7]
[329411717,1718326288941,-960.45,0.00024383,2]
[329411718,1718326288958,-3007.27504,0.00024383,2]
[329411719,1718326288992,-500.0,0.00024383,2]
[329411720,1718326289017,-500.0,0.00024383,2]
[329411721,1718326289036,-4009.44,0.00024383,2]
[329411722,1718326289102,-500.0,0.00024383,2]
[329411723,1718326289123,-151.0,0.00024383,7]
[329411724,1718326289134,-151.0,0.00024383,7]
[329411725,1718326289155,-354.671615,0.00024383,7]
[329411726,1718326289178,-500.0,0.00024383,2]
[329411727,1718326289232,-151.0,0.00024383,7]
[329411728,1718326289247,-354.671615,0.00024383,7]
[329411729,1718326289260,-500.0,0.00024383,2]
[329411730,1718326289278,-354.671615,0.00024383,7]
[329411731,1718326289347,-295.358287,0.00024383,7]
[329411732,1718326289362,-500.0,0.00024383,2]
[329411733,1718326289392,-1373.05,0.00024383,2]
[329411734,1718326289428,-500.0,0.00024383,2]
[329411735,1718326289442,-354.671615,0.00024383,7]
[329411736,1718326289485,-1310.27,0.00024383,2]
[329411737,1718326289512,-354.671615,0.00024383,7]
[329411738,1718326289528,-500.0,0.00024383,2]
[329411739,1718326289553,-403.95545016,0.00024383,2]
[329411740,1718326289566,-354.671615,0.00024383,7]
[329411741,1718326289593,-500.0,0.00024383,2]
[329411742,1718326289659,-161.253192,0.00024383,7]
[329411743,1718326289757,-161.253192,0.00024383,7]
[329411744,1718326289834,-161.253192,0.00024383,7]
[329411745,1718326289848,-500.0,0.00024383,2]
[329411746,1718326289860,-500.0,0.00024383,2]
[329411747,1718326289871,-1256.73,0.00024383,2]
[329411748,1718326289882,-500.0,0.00024383,2]
[329411749,1718326289893,-538.3,0.00024383,2]
[329411750,1718326289913,-164.93,0.00024383,2]
[329411751,1718326289925,-161.253192,0.00024383,7]
[329411752,1718326289937,-161.253192,0.00024383,7]
[329411753,1718326289947,-161.253192,0.00024383,7]
[329411754,1718326289972,-500.0,0.00024383,2]
[329411755,1718326289983,-270.285604,0.00024383,7]
[329411756,1718326289997,-500.0,0.00024383,2]
[329411757,1718326290016,-298.17,0.00024383,2]
[329411758,1718326290034,-545.47,0.00024383,2]
[329411759,1718326290065,-1048.7,0.00024383,2]
[329411760,1718326290081,-500.0,0.00024383,2]
[329411761,1718326290110,-500.0,0.00024383,2]
[329411762,1718326290158,-1580.07,0.00024383,2]
[329411763,1718326290194,-909.71,0.00024383,2]
[329411764,1718326290229,-151.0,0.00024383,7]
[329411765,1718326290247,-151.0,0.00024383,7]
[329411766,1718326290332,-173.198337,0.00024383,7]
[329411767,1718326290354,-500.0,0.00024383,2]
[329411768,1718326290379,-500.0,0.00024383,2]
[329411769,1718326290402,-500.0,0.00024383,2]
[329411770,1718326290415,-500.0,0.00024383,2]
[329411771,1718326290428,-500.0,0.00024383,2]
[329411772,1718326290440,-9157.77,0.00024383,2]
[329411773,1718326290469,-151.0,0.00024383,7]
[329411774,1718326290481,-500.0,0.00024383,2]
[329411775,1718326290497,-151.0,0.00024383,7]
[329411776,1718326290512,-151.0,0.00024383,7]
[329411777,1718326290527,-1186.73,0.00024383,2]
[329411778,1718326290540,-500.0,0.00024383,2]
[329411779,1718326290551,-500.0,0.00024383,2]
[329411780,1718326290565,-151.0,0.00024383,7]
[329411781,1718326290597,-500.0,0.00024383,2]
[329411782,1718326290617,-151.0,0.00024383,7]
[329411783,1718326290636,-151.0,0.00024383,7]
[329411784,1718326290669,-555.02,0.00024383,2]
[329411785,1718326290713,-151.0,0.00024383,7]
[329411786,1718326290726,-174.536872,0.00024383,7]
[329411787,1718326290763,-500.0,0.00024383,2]
[329411788,1718326290818,-500.0,0.00024383,2]
[329411789,1718326290845,-500.0,0.00024383,2]
[329411790,1718326290871,-1036.07,0.00024383,2]
[329411791,1718326290896,-500.0,0.00024383,2]
[329411792,1718326290929,-500.0,0.00024383,2]
[329411793,1718326290963,-5406.88,0.00024383,2]
[329411794,1718326290986,-1070.96,0.00024383,2]
[329411795,1718326291021,-500.0,0.00024383,2]
[329411796,1718326291073,-500.0,0.00024383,2]
[329411797,1718326291084,-2320.28,0.00024383,2]
[329411798,1718326291138,-500.0,0.00024383,2]
[329411799,1718326291150,-500.0,0.00024383,2]
[329411800,1718326291162,-500.0,0.00024383,2]
[329411801,1718326291177,-736.73,0.00024383,2]
[329411802,1718326291205,-500.0,0.00024383,2]
[329411803,1718326291236,-901.93,0.00024383,2]
[329411804,1718326291248,-890.11,0.00024383,2]
[329411805,1718326291286,-350.17577481,0.00024383,2]
[329411806,1718326291297,-1107.32,0.00024383,2]
[329411807,1718326291338,-500.0,0.00024383,2]
[329411808,1718326291350,-500.0,0.00024383,2]
[329411809,1718326291378,-500.0,0.00024383,2]
[329411810,1718326291391,-500.0,0.00024383,2]
[329411811,1718326291407,-500.0,0.00024383,2]
[329411812,1718326291418,-617.42,0.00024383,2]
[329411813,1718326291429,-1082.78,0.00024383,2]
[329411814,1718326291476,-500.0,0.00024383,2]
[329411815,1718326291522,-500.0,0.00024383,2]
[329411816,1718326291576,-500.0,0.00024383,2]
[329411817,1718326291587,-500.0,0.00024383,2]
[329411818,1718326291611,-500.0,0.00024383,2]
[329411819,1718326291621,-500.0,0.00024383,2]
[329411820,1718326291632,-500.0,0.00024383,2]
[329411821,1718326291642,-1279.93,0.00024383,2]
[329411822,1718326291653,-1129.3,0.00024383,2]
[329411823,1718326291664,-500.0,0.00024383,2]
[329411824,1718326291678,-1545.42,0.00024383,2]
[329411825,1718326291692,-681.39,0.00024383,2]
[329411826,1718326291703,-500.0,0.00024383,2]
[329411827,1718326291780,-500.0,0.00024383,2]
[329411828,1718326291826,-500.0,0.00024383,2]
[329411829,1718326291849,-1018.85,0.00024383,2]
[329411830,1718326291869,-1223.08,0.00024383,2]
[329411831,1718326291890,-691.09,0.00024383,2]
[329411832,1718326291924,-714.83,0.00024383,2]
[329411833,1718326291937,-500.0,0.00024383,2]
[329411834,1718326291953,-500.0,0.00024383,2]
[329411835,1718326291966,-200.0,0.00024383,2]
[329411836,1718326291977,-778.93,0.00024383,2]
[329411837,1718326292008,-3531.42,0.00024383,2]
[329411838,1718326292019,-500.0,0.00024383,2]
[329411839,1718326292029,-681.15,0.00024383,2]
[329411840,1718326292041,-500.0,0.00024383,2]
[329411841,1718326292067,-1473.8,0.00024383,2]
[329411842,1718326292078,-788.91,0.00024383,2]
[329411843,1718326292096,-505.43427468,0.00024383,2]
[329411844,1718326292136,-500.0,0.00024383,2]
[329411845,1718326292147,-6475.63,0.00024383,2]
[329411846,1718326292184,-777.73,0.00024383,2]
[329411847,1718326292210,-599.90445038,0.00024383,2]
[329411848,1718326292231,-500.0,0.00024383,2]
[329411849,1718326292249,-1577.29,0.00024383,2]
[329411850,1718326292264,-500.0,0.00024383,2]
[329411851,1718326292279,-328.80680885,0.00024383,2]
[329411852,1718326292296,-500.0,0.00024383,2]
[329411853,1718326292306,-500.0,0.00024383,2]
[329411854,1718326292333,-1120.28,0.00024383,2]
[329411855,1718326292353,-151.0,0.00024383,7]
[329411856,1718326292371,-1642.87,0.00024383,2]
[329411857,1718326292393,-2389.0,0.00024383,2]
[329411858,1718326292407,-151.0,0.00024383,7]
[329411859,1718326292423,-151.0,0.00024383,7]
[329411860,1718326292454,-500.0,0.00024383,2]
[329411861,1718326292478,-151.0,0.00024383,7]
[329411862,1718326292514,-2319.99,0.00024383,2]
[329411863,1718326292564,-1291.36,0.00024383,2]
[329411864,1718326292579,-500.0,0.00024383,2]
[329411865,1718326292623,-907.92,0.00024383,2]
[329411866,1718326292645,-500.0,0.00024383,2]
[329411867,1718326292674,-500.0,0.00024383,2]
[329411868,1718326292738,-520.14,0.00024383,2]
[329411869,1718326292761,-500.0,0.00024383,2]
[329411870,1718326292790,-151.0,0.00024383,7]
[329411871,1718326292806,-151.0,0.00024383,7]
[329411872,1718326292833,-12987.45,0.00024383,2]
[329411873,1718326292857,-151.0,0.00024383,7]
[329411874,1718326292899,-151.0,0.00024383,7]
[329411875,1718326292942,-500.0,0.00024383,2]
[329411876,1718326292964,-500.0,0.00024383,2]
[329411877,1718326292977,-151.0,0.00024383,7]
[329411878,1718326293026,-500.0,0.00024383,2]
[329411879,1718326293047,-151.0,0.00024383,7]
[329411880,1718326293060,-611.86,0.00024383,2]
[329411881,1718326293076,-151.0,0.00024383,7]
[329411882,1718326293089,-157.497477,0.00024383,7]
[329411883,1718326293117,-778.21,0.00024383,2]
[329411884,1718326293152,-151.0,0.00024383,7]
[329411885,1718326293166,-151.0,0.00024383,7]
[329411886,1718326293184,-151.0,0.00024383,7]
[329411887,1718326293196,-500.0,0.00024383,2]
[329411888,1718326293207,-239.50793,0.00024383,7]
[329411889,1718326293225,-500.0,0.00024383,2]
[329411890,1718326293261,-754.88,0.00024383,2]
[329411891,1718326293284,-500.0,0.00024383,2]
[329411892,1718326293302,-500.0,0.00024383,2]
[329411893,1718326293317,-4074.81,0.00024383,2]
[329411894,1718326293344,-2845.3,0.00024383,2]
[329411895,1718326293373,-500.0,0.00024383,2]
[329411896,1718326293384,-656.54,0.00024383,2]
[329411897,1718326293421,-500.0,0.00024383,2]
[329411898,1718326293432,-1483.98,0.00024383,2]
[329411899,1718326293460,-1532.91,0.00024383,2]
[329411900,1718326293478,-2056.22,0.00024383,2]
[329411901,1718326293492,-500.0,0.00024383,2]
[329411902,1718326293508,-576.83,0.00024383,2]
[329411903,1718326293524,-546.09707594,0.00024383,2]
[329411904,1718326293536,-1278.2,0.00024383,2]
[329411905,1718326293560,-500.0,0.00024383,2]
[329411906,1718326293602,-599.45,0.00024383,2]
[329411907,1718326293617,-545.47788724,0.00024383,2]
[329411908,1718326293636,-500.0,0.00024383,2]
[329411909,1718326293656,-872.76,0.00024383,2]
[329411910,1718326293729,-599.429581,0.00024383,7]
[329411911,1718326293776,-599.429581,0.00024383,7]
[329411912,1718326293818,-599.429581,0.00024383,7]
[329411913,1718326293873,-599.429581,0.00024383,7]
[329411914,1718326293900,-1297.03,0.00024383,2]
[329411915,1718326293926,-20832.05,0.00024383,2]
[329411916,1718326293938,-622.48,0.00024383,2]
[329411917,1718326293952,-500.0,0.00024383,2]
[329411918,1718326293968,-3101.77,0.00024383,2]
[329411919,1718326293981,-599.429581,0.00024383,7]
[329411920,1718326294025,-599.429581,0.00024383,7]
[329411921,1718326294100,-599.429581,0.00024383,7]
[329411922,1718326294115,-599.429581,0.00024383,7]
[329411923,1718326294138,-500.0,0.00024383,2]
[329411924,1718326294183,-504.57264645,0.00024383,2]
[329411925,1718326294219,-500.0,0.00024383,2]
[329411926,1718326294264,-500.0,0.00024383,2]
[329411927,1718326294287,-500.0,0.00024383,2]
[329411928,1718326294316,-643.49,0.00024383,2]
[329411929,1718326294327,-500.0,0.00024383,2]
[329411930,1718326294346,-500.0,0.00024383,2]
[329411931,1718326294378,-500.0,0.00024383,2]
[329411932,1718326294438,-5842.58,0.00024383,2]
[329411933,1718326294451,-1263.39,0.00024383,2]
[329411934,1718326294473,-151.0,0.00024383,7]
[329411935,1718326294508,-500.0,0.00024383,2]
[329411936,1718326294527,-500.0,0.00024383,2]
[329411937,1718326294563,-151.0,0.00024383,7]
[329411938,1718326294609,-500.0,0.00024383,2]
[329411939,1718326294640,-2399.05,0.00024383,2]
[329411940,1718326294693,-207.303538,0.00024383,7]
[329411941,1718326294712,-1214.38,0.00024383,2]
[329411942,1718326294727,-500.0,0.00024383,2]
[329411943,1718326294759,-2171.12,0.00024383,2]
[329411944,1718326294813,-500.0,0.00024383,2]
[329411945,1718326294840,-500.0,0.00024383,2]
[329411946,1718326294877,-887.59,0.00024383,2]
[329411947,1718326294915,-2938.01,0.00024383,2]
[329411948,1718326294954,-881.63,0.00024383,2]
[329411949,1718326294968,-500.0,0.00024383,2]
[329411950,1718326294979,-294.752311,0.00024383,7]
[329411951,1718326294991,-1881.22,0.00024383,2]
[329411952,1718326295028,-2087.76,0.00024383,2]
[329411953,1718326295054,-1025.72,0.00024383,2]
[329411954,1718326295065,-500.0,0.00024383,2]
[329411955,1718326295078,-500.0,0.00024383,2]
[329411956,1718326295091,-500.0,0.00024383,2]
[329411957,1718326295104,-1880.15,0.00024383,2]
[329411958,1718326295120,-1571.8,0.00024383,2]
[329411959,1718326295131,-500.0,0.00024383,2]
[329411960,1718326295142,-500.0,0.00024383,2]
[329411961,1718326295152,-9937.45,0.00024383,2]
[329411962,1718326295163,-500.0,0.00024383,2]
[329411963,1718326295173,-1153.0,0.00024383,2]
[329411964,1718326295183,-500.0,0.00024383,2]
[329411965,1718326295195,-500.0,0.00024383,2]
[329411966,1718326295206,-500.0,0.00024383,2]
[329411967,1718326295225,-500.0,0.00024383,2]
[329411968,1718326295235,-563.90115151,0.00024383,2]
[329411969,1718326295245,-1172.55,0.00024383,2]
[329411970,1718326295256,-513.90148466,0.00024383,2]
[329411971,1718326295269,-500.0,0.00024383,2]
[329411972,1718326295281,-1392.18,0.00024383,2]
[329411973,1718326295292,-1618.84,0.00024383,2]
[329411974,1718326295307,-500.0,0.00024383,2]
[329411975,1718326295320,-500.0,0.00024383,2]
[329411976,1718326295332,-500.0,0.00024383,2]
[329411977,1718326295366,-2248.57,0.00024383,2]
[329411978,1718326295388,-500.0,0.00024383,2]
[329411979,1718326295399,-500.0,0.00024383,2]
[329411980,1718326295412,-759.17,0.00024383,2]
[329411981,1718326295427,-3702.08,0.00024383,2]
[329411982,1718326295452,-500.0,0.00024383,2]
[329411983,1718326295463,-151.0,0.00024383,7]
[329411984,1718326295521,-151.0,0.00024383,7]
[329411985,1718326295589,-151.0,0.00024383,7]
[329411986,1718326295600,-151.0,0.00024383,7]
[329411987,1718326295612,-500.0,0.00024383,2]
[329411988,1718326295628,-500.0,0.00024383,2]
[329411989,1718326295640,-11940.85,0.00024383,2]
[329411990,1718326295665,-151.0,0.00024383,7]
[329411991,1718326295678,-151.0,0.00024383,7]
[329411992,1718326295689,-500.0,0.00024383,2]
[329411993,1718326295701,-500.0,0.00024383,2]
[329411994,1718326295713,-500.0,0.00024383,2]
[329411995,1718326295731,-500.0,0.00024383,2]
[329411996,1718326295746,-500.0,0.00024383,2]
[329411997,1718326295757,-3013.12,0.00024383,2]
[329411998,1718326295777,-899.62,0.00024383,2]
[329411999,1718326295789,-500.0,0.00024383,2]
[329412000,1718326295800,-262.66393983,0.00024383,2]
[329412001,1718326295812,-524.7,0.00024383,2]
[329412002,1718326295824,-1594.39,0.00024383,2]
[329412003,1718326295836,-4218.81,0.00024383,2]
[329412004,1718326295852,-657.14,0.00024383,2]
[329412005,1718326295863,-500.0,0.00024383,2]
[329412006,1718326295873,-500.0,0.00024383,2]
[329412007,1718326295885,-795.48,0.00024383,2]
[329412008,1718326295896,-656.47,0.00024383,2]
[329412009,1718326295929,-499.6880947,0.00024383,2]
[329412010,1718326295941,-500.0,0.00024383,2]
[329412011,1718326295952,-500.0,0.00024383,2]
[329412012,1718326295980,-574.72,0.00024383,2]
[329412013,1718326296001,-561.8713657,0.00024383,2]
[329412014,1718326296018,-500.0,0.00024383,2]
[329412015,1718326296043,-500.0,0.00024383,2]
[329412016,1718326296057,-500.0,0.00024383,2]
[329412017,1718326296068,-6462.427606,0.00024383,7]
[329412018,1718326296086,-500.0,0.00024383,2]
[329412019,1718326296101,-6462.427606,0.00024383,7]
[329412020,1718326296117,-4273.7,0.00024383,2]
[329412021,1718326296131,-6462.427606,0.00024383,7]
[329412022,1718326296164,-6462.427606,0.00024383,7]
[329412023,1718326296176,-2686.47,0.00024383,2]
[329412024,1718326296222,-500.0,0.00024383,2]
[329412025,1718326296241,-747.72,0.00024383,2]
[329412026,1718326296263,-500.0,0.00024383,2]
[329412027,1718326296274,-871.16,0.00024383,2]
[329412028,1718326296294,-500.0,0.00024383,2]
[329412029,1718326296311,-154.256273,0.00024383,7]
[329412030,1718326296325,-500.0,0.00024383,2]
[329412031,1718326296341,-154.256273,0.00024383,7]
[329412032,1718326296366,-6462.427606,0.00024383,7]
[329412033,1718326296392,-154.256273,0.00024383,7]
[329412034,1718326296426,-6462.427606,0.00024383,7]
[329412035,1718326296439,-154.256273,0.00024383,7]
[329412036,1718326296457,-500.0,0.00024383,2]
[329412037,1718326296480,-6462.427606,0.00024383,7]
[329412038,1718326296514,-151.0,0.00024383,7]
[329412039,1718326296557,-6462.427606,0.00024383,7]
[329412040,1718326296569,-151.0,0.00024383,7]
[329412041,1718326296588,-311.82,0.00024384,2]
[329412042,1718326296600,-158.92,0.00024384,2]
[329412043,1718326296614,-157.83,0.00024384,2]
[329412044,1718326296626,-158.36,0.00024384,2]
[329412045,1718326296639,-229.81,0.00024384,2]
[329412046,1718326296650,-307.363228,0.00024384,7]
[329412047,1718326296688,-341.652658,0.00024384,7]
[329412048,1718326296702,-307.363228,0.00024384,7]
[329412049,1718326296728,-341.652658,0.00024384,7]
[329412050,1718326296749,-160.13,0.00024387,2]
[329412051,1718326296760,-151.0,0.00024398,7]
[329412052,1718326296780,-151.0,0.00024398,7]
[329412053,1718326296792,-151.0,0.00024398,7]
[329412054,1718326296811,-151.0,0.00024398,7]
[329412055,1718326296855,-151.0,0.00024398,7]
[329412056,1718326296873,-354.671615,0.00024398,7]
[329412057,1718326296885,-354.671615,0.00024398,7]
[329412058,1718326296912,-161.253192,0.00024398,7]
[329412059,1718326296925,-161.253192,0.00024398,7]
[329412060,1718326296936,-151.0,0.00024398,7]
[329412061,1718326296953,-299.494883,0.00024398,7]
[329412062,1718326296976,-2582.4709868,0.00024445,2]
[329412063,1718326296998,-1483.68025792,0.000245,3]
[329412064,1718326297031,-970.27391007,0.000245,4]
[329412065,1718326297061,-1000.0,0.00024558,2]
[329412066,1718326297080,-429.64334419,0.00024599,2]
[329412067,1718326297098,-500.0,0.00024656,2]
[329412068,1718326297123,-150.0,0.00024656,7]
[329412069,1718326297146,-500.0,0.00024657,2]
[329412070,1718326297172,-605.83008201,0.00024657,2]
[329412071,1718326297193,-347.65577118,0.00024657,2]
[329412072,1718326297213,-500.0,0.00024657,2]
[329412073,1718326297228,-500.0,0.00024657,2]
[329412074,1718326297256,-406.74,0.00024657,2]
[329412075,1718326297269,-500.0,0.00024657,2]
[329412076,1718326297280,-500.0,0.00024657,2]
[329412077,1718326297322,-500.0,0.00024657,2]
[329412078,1718326297338,-500.0,0.00024657,2]
[329412079,1718326297351,-500.0,0.00024657,2]
[329412080,1718326297378,-500.0,0.00024657,2]
[329412081,1718326297404,-500.0,0.00024657,2]
[329412082,1718326297444,-547.7635108,0.00024657,2]
[329412083,1718326297476,-500.0,0.00024657,2]
[329412084,1718326297487,-500.0,0.00024657,2]
[329412085,1718326297500,-500.0,0.00024657,2]
[329412086,1718326297517,-500.0,0.00024657,2]
[329412087,1718326297556,-151.0,0.00024657,7]
[329412088,1718326297581,-151.0,0.00024657,7]
[329412089,1718326297595,-199.008275,0.00024657,7]
[329412090,1718326297640,-500.0,0.00024657,2]
[329412091,1718326297664,-298.00741971,0.00024657,2]
[329412092,1718326297681,-500.0,0.00024657,2]
[329412093,1718326297695,-500.0,0.00024657,2]
[329412094,1718326297727,-500.0,0.00024657,2]
[329412095,1718326297758,-500.0,0.00024657,2]
[329412096,1718326297799,-500.0,0.00024657,2]
[329412097,1718326297850,-500.0,0.00024657,2]
[329412098,1718326297873,-500.0,0.00024657,2]
[329412099,1718326297884,-500.0,0.00024657,2]
[329412100,1718326297895,-500.0,0.00024657,2]
[329412101,1718326297948,-500.0,0.00024657,2]
[329412102,1718326297989,-500.0,0.00024657,2]
[329412103,1718326298012,-500.0,0.00024657,2]
[329412104,1718326298080,-500.0,0.00024657,2]
[329412105,1718326298112,-553.86,0.00024657,2]
[329412106,1718326298125,-500.0,0.00024657,2]
[329412107,1718326298143,-500.0,0.00024657,2]
[329412108,1718326298168,-500.0,0.00024657,2]
[329412109,1718326298191,-500.0,0.00024657,2]
[329412110,1718326298222,-500.0,0.00024657,2]
[329412111,1718326298257,-500.0,0.00024657,2]
[329412112,1718326298270,-151.0,0.00024657,7]
[329412113,1718326298286,-151.0,0.00024657,7]
[329412114,1718326298303,-500.0,0.00024657,2]
[329412115,1718326298314,-500.0,0.00024657,2]
[329412116,1718326298326,-500.0,0.00024657,2]
[329412117,1718326298337,-500.0,0.00024657,2]
[329412118,1718326298356,-500.0,0.00024657,2]
[329412119,1718326298368,-500.0,0.00024657,2]
[329412120,1718326298408,-151.0,0.00024657,7]
[329412121,1718326298439,-151.0,0.00024657,7]
[329412122,1718326298474,-500.0,0.00024657,2]
[329412123,1718326298487,-500.0,0.00024657,2]
[329412124,1718326298507,-500.0,0.00024657,2]
[329412125,1718326298537,-151.0,0.00024657,7]
[329412126,1718326298548,-151.0,0.00024657,7]
[329412127,1718326298559,-500.0,0.00024657,2]
[329412128,1718326298596,-763.62,0.00024657,2]
[329412129,1718326298608,-500.0,0.00024657,2]
[329412130,1718326298622,-500.0,0.00024657,2]
[329412131,1718326298634,-500.0,0.00024657,2]
[329412132,1718326298648,-500.0,0.00024657,2]
[329412133,1718326298660,-500.0,0.00024657,2]
[329412134,1718326298671,-500.0,0.00024657,2]
[329412135,1718326298912,-500.0,0.00024657,2]
[329412136,1718326298924,-500.0,0.00024657,2]
[329412137,1718326298935,-246.29,0.00024657,2]
[329412138,1718326298949,-500.0,0.00024657,2]
[329412139,1718326298963,-581.12,0.00024657,2]
[329412140,1718326298988,-500.0,0.00024657,2]
[329412141,1718326299021,-151.0,0.00024657,7]
[329412142,1718326299033,-177.349396,0.00024657,7]
[329412143,1718326299078,-500.0,0.00024657,2]
[329412144,1718326299096,-500.0,0.00024657,2]
[329412145,1718326299177,-500.0,0.00024657,2]
[329412146,1718326299192,-500.0,0.00024657,2]
[329412147,1718326299252,-543.04548683,0.00024657,2]
[329412148,1718326299392,-500.0,0.00024657,2]
[329412149,1718326299416,-500.0,0.00024657,2]
[329412150,1718326299438,-500.0,0.00024657,2]
[329412151,1718326299449,-500.0,0.00024657,2]
[329412152,1718326299481,-500.0,0.00024657,2]
[329412153,1718326299494,-500.0,0.00024657,2]
[329412154,1718326299518,-500.0,0.00024657,2]
[329412155,1718326299535,-500.0,0.00024657,2]
[329412156,1718326299562,-500.0,0.00024657,2]
[329412157,1718326299575,-640.07,0.00024657,2]
[329412158,1718326299592,-500.0,0.00024657,2]
[329412159,1718326299613,-500.0,0.00024657,2]